fUST/lending_fUST_20260506
["ID","MTS","AMOUNT","RATE_DAILY","PERIOD"]
[421634997,1778002259000,-500.0,0.00013424,2]
[421634998,1778002259000,-657.99,0.00013424,2]
[421634995,1778002259000,-500.0,0.00013424,2]
[421635016,1778002259000,-730.73,0.00013424,2]
[421635003,1778002259000,-500.0,0.00013424,2]
[421635002,1778002259000,-639.33,0.00013424,2]
[421635004,1778002259000,-2530.68,0.00013424,2]
[421635012,1778002259000,-500.0,0.00013424,2]
[421635005,1778002259000,-825.91,0.00013424,2]
[421635006,1778002259000,-574.58,0.00013424,2]
[421635013,1778002259000,-500.0,0.00013424,2]
[421635014,1778002259000,-983.4,0.00013424,2]
[421635008,1778002259000,-500.0,0.00013424,2]
[421635007,1778002259000,-500.0,0.00013424,2]
[421635009,1778002259000,-1356.29,0.00013424,2]
[421635011,1778002259000,-496.98827145,0.00013424,2]
[421634980,1778002259000,-824.77,0.00013424,2]
[421634999,1778002259000,-500.0,0.00013424,2]
[421634981,1778002259000,-753.45,0.00013424,2]
[421634964,1778002259000,-500.0,0.00013424,2]
[421634989,1778002259000,-623.68,0.00013424,2]
[421635015,1778002259000,-500.0,0.00013424,2]
[421634965,1778002259000,-500.0,0.00013424,2]
[421634956,1778002259000,-587.4731637,0.00013424,2]
[421634957,1778002259000,-500.0,0.00013424,2]
[421634962,1778002259000,-500.0,0.00013424,2]
[421634960,1778002259000,-561.86,0.00013424,2]
[421634959,1778002259000,-515.18,0.00013424,2]
[421634958,1778002259000,-923.26,0.00013424,2]
[421634961,1778002259000,-500.0,0.00013424,2]
[421634963,1778002259000,-1290.38,0.00013424,2]
[421634966,1778002259000,-500.0,0.00013424,2]
[421634967,1778002259000,-500.0,0.00013424,2]
[421634973,1778002259000,-500.0,0.00013424,2]
[421634977,1778002259000,-500.0,0.00013424,2]
[421634968,1778002259000,-500.0,0.00013424,2]
[421634975,1778002259000,-500.0,0.00013424,2]
[421634972,1778002259000,-500.0,0.00013424,2]
[421634971,1778002259000,-500.0,0.00013424,2]
[421634969,1778002259000,-500.0,0.00013424,2]
[421634974,1778002259000,-693.85,0.00013424,2]
[421634970,1778002259000,-1155.95,0.00013424,2]
[421634978,1778002259000,-554.89280252,0.00013424,2]
[421634983,1778002259000,-1748.27,0.00013424,2]
[421634984,1778002259000,-645.34,0.00013424,2]
[421634985,1778002259000,-500.0,0.00013424,2]
[421634988,1778002259000,-500.0,0.00013424,2]
[421634986,1778002259000,-500.0,0.00013424,2]
[421634987,1778002259000,-500.0,0.00013424,2]
[421634976,1778002259000,-500.0,0.00013424,2]
[421635019,1778002259000,-734.82,0.00013424,2]
[421635010,1778002259000,-663.63,0.00013424,2]
[421635018,1778002259000,-500.0,0.00013424,2]
[421635050,1778002259000,-500.0,0.00013424,2]
[421635044,1778002259000,-604.03,0.00013424,2]
[421635055,1778002259000,-2267.39,0.00013424,2]
[421635065,1778002259000,-500.0,0.00013424,2]
[421635058,1778002259000,-1235.21,0.00013424,2]
[421635056,1778002259000,-1700.6,0.00013424,2]
[421635066,1778002259000,-500.0,0.00013424,2]
[421635057,1778002259000,-654.98,0.00013424,2]
[421635063,1778002259000,-2014.8,0.00013424,2]
[421635062,1778002259000,-198.91635136,0.00013424,2]
[421635059,1778002259000,-640.09,0.00013424,2]
[421635054,1778002259000,-923.27,0.00013424,2]
[421635060,1778002259000,-870.36,0.00013424,2]
[421635045,1778002259000,-500.0,0.00013424,2]
[421635064,1778002259000,-3762.18,0.00013424,2]
[421635068,1778002259000,-602.2,0.00013424,2]
[421635077,1778002259000,-636.18790872,0.00013424,2]
[421635078,1778002259000,-500.0,0.00013424,2]
[421635071,1778002259000,-500.0,0.00013424,2]
[421635075,1778002259000,-743.13,0.00013424,2]
[421635079,1778002259000,-4042.37,0.00013424,2]
[421635074,1778002259000,-500.0,0.00013424,2]
[421635069,1778002259000,-500.0,0.00013424,2]
[421635072,1778002259000,-500.0,0.00013424,2]
[421635070,1778002259000,-484.64759199,0.00013424,2]
[421635073,1778002259000,-2873.36,0.00013424,2]
[421635076,1778002259000,-622.13,0.00013424,2]
[421635020,1778002259000,-595.38,0.00013424,2]
[421635061,1778002259000,-661.02,0.00013424,2]
[421635048,1778002259000,-523.85,0.00013424,2]
[421635067,1778002259000,-379.15970537,0.00013424,2]
[421635053,1778002259000,-836.88,0.00013424,2]
[421635043,1778002259000,-550.03,0.00013424,2]
[421635022,1778002259000,-566.01,0.00013424,2]
[421635024,1778002259000,-1130.38,0.00013424,2]
[421635017,1778002259000,-1934.17,0.00013424,2]
[421635080,1778002259000,-500.0,0.00013424,2]
[421635021,1778002259000,-2033.98,0.00013424,2]
[421635026,1778002259000,-500.0,0.00013424,2]
[421635027,1778002259000,-3777.65,0.00013424,2]
[421635025,1778002259000,-611.02,0.00013424,2]
[421635034,1778002259000,-4056.89,0.00013424,2]
[421635039,1778002259000,-2021.18,0.00013424,2]
[421635031,1778002259000,-532.59,0.00013424,2]
[421635040,1778002259000,-500.0,0.00013424,2]
[421635032,1778002259000,-500.0,0.00013424,2]
[421635023,1778002259000,-562.18,0.00013424,2]
[421635030,1778002259000,-500.0,0.00013424,2]
[421635035,1778002259000,-500.0,0.00013424,2]
[421635051,1778002259000,-500.0,0.00013424,2]
[421635052,1778002259000,-500.0,0.00013424,2]
[421635047,1778002259000,-1105.9,0.00013424,2]
[421635041,1778002259000,-1761.58,0.00013424,2]
[421635046,1778002259000,-1763.41,0.00013424,2]
[421635042,1778002259000,-800.21,0.00013424,2]
[421635049,1778002259000,-649.14,0.00013424,2]
[421635036,1778002259000,-1184.75,0.00013424,2]
[421635033,1778002259000,-685.76,0.00013424,2]
[421635029,1778002259000,-500.0,0.00013424,2]
[421635037,1778002259000,-985.09,0.00013424,2]
[421635028,1778002259000,-558.4,0.00013424,2]
[421635038,1778002259000,-500.0,0.00013424,2]
[421635115,1778002260000,-6703.17,0.00013424,2]
[421635109,1778002260000,-10709.89,0.00013424,2]
[421635117,1778002260000,-924.68,0.00013424,2]
[421635113,1778002260000,-3358.85,0.00013424,2]
[421635110,1778002260000,-7002.66,0.00013424,2]
[421635111,1778002260000,-500.0,0.00013424,2]
[421635108,1778002260000,-500.0,0.00013424,2]
[421635112,1778002260000,-600.52,0.00013424,2]
[421635107,1778002260000,-761.2746,0.00013424,2]
[421635116,1778002260000,-3883.75,0.00013424,2]
[421635118,1778002260000,-3541.94,0.00013424,2]
[421635119,1778002260000,-1157.17,0.00013424,2]
[421635130,1778002260000,-4207.83,0.00013424,2]
[421635121,1778002260000,-964.9,0.00013424,2]
[421635120,1778002260000,-914.11,0.00013424,2]
[421635129,1778002260000,-500.0,0.00013424,2]
[421635123,1778002260000,-733.11,0.00013424,2]
[421635127,1778002260000,-500.0,0.00013424,2]
[421635125,1778002260000,-623.0,0.00013424,2]
[421635105,1778002260000,-327.0,0.00013424,2]
[421635122,1778002260000,-500.0,0.00013424,2]
[421635114,1778002260000,-2591.47,0.00013424,2]
[421635106,1778002260000,-597.67,0.00013424,2]
[421635087,1778002260000,-5066.54,0.00013424,2]
[421635094,1778002260000,-545.47,0.00013424,2]
[421635128,1778002260000,-500.0,0.00013424,2]
[421635081,1778002260000,-938.52,0.00013424,2]
[421635086,1778002260000,-500.0,0.00013424,2]
[421635084,1778002260000,-1348.87,0.00013424,2]
[421635091,1778002260000,-4389.26,0.00013424,2]
[421635082,1778002260000,-590.66,0.00013424,2]
[421635085,1778002260000,-500.0,0.00013424,2]
[421635083,1778002260000,-500.0,0.00013424,2]
[421635090,1778002260000,-500.0,0.00013424,2]
[421635089,1778002260000,-500.0,0.00013424,2]
[421635097,1778002260000,-500.0,0.00013424,2]
[421635088,1778002260000,-1773.46,0.00013424,2]
[421635099,1778002260000,-500.0,0.00013424,2]
[421635100,1778002260000,-500.0,0.00013424,2]
[421635101,1778002260000,-500.0,0.00013424,2]
[421635102,1778002260000,-890.68,0.00013424,2]
[421635092,1778002260000,-581.63,0.00013424,2]
[421635104,1778002260000,-500.0,0.00013424,2]
[421635103,1778002260000,-12583.81,0.00013424,2]
[421635096,1778002260000,-1439.27,0.00013424,2]
[421635095,1778002260000,-500.0,0.00013424,2]
[421635098,1778002260000,-500.0,0.00013424,2]
[421635093,1778002260000,-500.0,0.00013424,2]
[421635124,1778002260000,-500.0,0.00013424,2]
[421635131,1778002260000,-1145.77,0.00013424,2]
[421635141,1778002260000,-500.0,0.00013424,2]
[421635160,1778002260000,-7772.67,0.00013424,2]
[421635161,1778002260000,-762.72,0.00013424,2]
[421635169,1778002260000,-500.0,0.00013424,2]
[421635166,1778002260000,-500.0,0.00013424,2]
[421635171,1778002260000,-500.0,0.00013424,2]
[421635162,1778002260000,-3453.39,0.00013424,2]
[421635165,1778002260000,-3661.78,0.00013424,2]
[421635168,1778002260000,-755.53,0.00013424,2]
[421635163,1778002260000,-655.98,0.00013424,2]
[421635170,1778002260000,-11965.69,0.00013424,2]
[421635159,1778002260000,-699.52,0.00013424,2]
[421635164,1778002260000,-58127.56,0.00013424,2]
[421635173,1778002260000,-787.12,0.00013424,2]
[421635172,1778002260000,-500.0,0.00013424,2]
[421635174,1778002260000,-2307.17,0.00013424,2]
[421635176,1778002260000,-2969.6,0.00013424,2]
[421635126,1778002260000,-500.0,0.00013424,2]
[421635177,1778002260000,-621.72,0.00013424,2]
[421635178,1778002260000,-2572.18,0.00013424,2]
[421635179,1778002260000,-6414.52,0.00013424,2]
[421635180,1778002260000,-550.08,0.00013424,2]
[421635181,1778002260000,-4739.33,0.00013424,2]
[421635167,1778002260000,-500.0,0.00013424,2]
[421635152,1778002260000,-595.77,0.00013424,2]
[421635175,1778002260000,-500.0,0.00013424,2]
[421635149,1778002260000,-555.09,0.00013424,2]
[421635148,1778002260000,-500.0,0.00013424,2]
[421635136,1778002260000,-801.95,0.00013424,2]
[421635142,1778002260000,-7985.38,0.00013424,2]
[421635132,1778002260000,-500.0,0.00013424,2]
[421635134,1778002260000,-4650.73,0.00013424,2]
[421635135,1778002260000,-3603.85,0.00013424,2]
[421635139,1778002260000,-1174.77,0.00013424,2]
[421635133,1778002260000,-500.0,0.00013424,2]
[421635143,1778002260000,-500.0,0.00013424,2]
[421635138,1778002260000,-500.0,0.00013424,2]
[421635137,1778002260000,-1511.57,0.00013424,2]
[421635145,1778002260000,-500.0,0.00013424,2]
[421635140,1778002260000,-500.0,0.00013424,2]
[421635150,1778002260000,-10696.57,0.00013424,2]
[421635158,1778002260000,-500.0,0.00013424,2]
[421635156,1778002260000,-1524.19,0.00013424,2]
[421635151,1778002260000,-2596.18,0.00013424,2]
[421635147,1778002260000,-3135.57,0.00013424,2]
[421635146,1778002260000,-3281.37,0.00013424,2]
[421635155,1778002260000,-500.0,0.00013424,2]
[421635144,1778002260000,-3607.16,0.00013424,2]
[421635154,1778002260000,-4622.19,0.00013424,2]
[421635200,1778002261000,-517.67,0.00013424,2]
[421635216,1778002261000,-272.41791792,0.00013673,2]
[421635207,1778002261000,-1606.90056466,0.00013545,2]
[421635206,1778002261000,-1606.90056466,0.00013538,2]
[421635208,1778002261000,-155.0,0.0001356,2]
[421635202,1778002261000,-720.0,0.00013463,2]
[421635213,1778002261000,-635.34111787,0.0001364,2]
[421635212,1778002261000,-10000.0,0.00013632,2]
[421635215,1778002261000,-500.11148113,0.00013673,2]
[421635209,1778002261000,-1606.90056466,0.00013595,2]
[421635211,1778002261000,-10000.0,0.00013632,2]
[421635210,1778002261000,-3151.53,0.00013632,2]
[421635217,1778002261000,-500.11120771,0.00013673,2]
[421635218,1778002261000,-500.0,0.00013673,2]
[421635201,1778002261000,-1559.0,0.00013426,2]
[421635219,1778002261000,-500.0,0.00013673,2]
[421635214,1778002261000,-160.35756587,0.00013673,2]
[421635203,1778002261000,-155.0,0.00013491,2]
[421635192,1778002261000,-729.02,0.00013424,2]
[421635197,1778002261000,-686.66,0.00013424,2]
[421635222,1778002261000,-500.0,0.00013673,2]
[421635182,1778002261000,-777.84,0.00013424,2]
[421635184,1778002261000,-1232.16,0.00013424,2]
[421635183,1778002261000,-12367.76,0.00013424,2]
[421635186,1778002261000,-2893.83,0.00013424,2]
[421635185,1778002261000,-500.0,0.00013424,2]
[421635187,1778002261000,-500.0,0.00013424,2]
[421635189,1778002261000,-500.0,0.00013424,2]
[421635191,1778002261000,-2929.92,0.00013424,2]
[421635190,1778002261000,-1037.56,0.00013424,2]
[421635193,1778002261000,-1564.53,0.00013424,2]
[421635194,1778002261000,-500.87298354,0.00013424,2]
[421635195,1778002261000,-842.53,0.00013424,2]
[421635196,1778002261000,-2096.38,0.00013424,2]
[421635204,1778002261000,-1606.90056466,0.00013507,2]
[421635205,1778002261000,-1606.90056466,0.00013524,2]
[421635199,1778002261000,-3534.63,0.00013424,2]
[421635198,1778002261000,-571.71,0.00013424,2]
[421635221,1778002261000,-500.0,0.00013673,2]
[421635188,1778002261000,-676.5,0.00013424,2]
[421635223,1778002261000,-500.0,0.00013673,2]
[421635252,1778002261000,-515.18,0.00013698,2]
[421635254,1778002261000,-620.49,0.00013698,2]
[421635245,1778002261000,-534.3355,0.00013698,2]
[421635244,1778002261000,-630.61,0.00013698,2]
[421635248,1778002261000,-870.81,0.00013698,2]
[421635249,1778002261000,-722.23,0.00013698,2]
[421635246,1778002261000,-761.7243,0.00013698,2]
[421635261,1778002261000,-620.49,0.00013698,2]
[421635250,1778002261000,-500.0,0.00013698,2]
[421635247,1778002261000,-4274.5909,0.00013698,2]
[421635256,1778002261000,-561.86,0.00013698,2]
[421635255,1778002261000,-620.49,0.00013698,2]
[421635257,1778002261000,-620.49,0.00013698,2]
[421635259,1778002261000,-620.49,0.00013698,2]
[421635260,1778002261000,-620.49,0.00013698,2]
[421635258,1778002261000,-620.49,0.00013698,2]
[421635262,1778002261000,-379.92256275,0.00013698,2]
[421635242,1778002261000,-160.0,0.0001368,7]
[421635243,1778002261000,-200.0,0.00013697,2]
[421635220,1778002261000,-235.47212009,0.00013673,2]
[421635251,1778002261000,-923.26,0.00013698,2]
[421635253,1778002261000,-620.49,0.00013698,2]
[421635228,1778002261000,-500.0,0.00013673,2]
[421635224,1778002261000,-500.0,0.00013673,2]
[421635225,1778002261000,-500.0,0.00013673,2]
[421635226,1778002261000,-500.0,0.00013673,2]
[421635227,1778002261000,-500.0,0.00013673,2]
[421635229,1778002261000,-500.25299112,0.00013673,2]
[421635230,1778002261000,-500.0,0.00013673,2]
[421635233,1778002261000,-503.03283461,0.00013673,2]
[421635231,1778002261000,-169.79740536,0.00013673,2]
[421635240,1778002261000,-164.07898197,0.00013673,2]
[421635241,1778002261000,-500.0,0.00013673,2]
[421635238,1778002261000,-500.0,0.00013673,2]
[421635237,1778002261000,-532.64335576,0.00013673,2]
[421635236,1778002261000,-167.28529572,0.00013673,2]
[421635235,1778002261000,-500.0,0.00013673,2]
[421635234,1778002261000,-213.55036308,0.00013673,2]
[421635232,1778002261000,-500.0,0.00013673,2]
[421635239,1778002261000,-220.84518668,0.00013673,2]
[421635295,1778002262000,-511.55325277,0.00013698,2]
[421635291,1778002262000,-500.0,0.00013698,2]
[421635296,1778002262000,-296.98708751,0.00013698,2]
[421635289,1778002262000,-500.0,0.00013698,2]
[421635287,1778002262000,-1290.38,0.00013698,2]
[421635288,1778002262000,-500.0,0.00013698,2]
[421635292,1778002262000,-500.0,0.00013698,2]
[421635294,1778002262000,-1155.95,0.00013698,2]
[421635298,1778002262000,-767.4,0.00013698,2]
[421635293,1778002262000,-500.0,0.00013698,2]
[421635297,1778002262000,-203.01291249,0.00013698,2]
[421635299,1778002262000,-767.4,0.00013698,2]
[421635308,1778002262000,-767.4,0.00013698,2]
[421635300,1778002262000,-767.4,0.00013698,2]
[421635309,1778002262000,-767.4,0.00013698,2]
[421635301,1778002262000,-767.4,0.00013698,2]
[421635286,1778002262000,-500.0,0.00013698,2]
[421635290,1778002262000,-500.0,0.00013698,2]
[421635285,1778002262000,-521.15680148,0.00013698,2]
[421635283,1778002262000,-500.0,0.00013698,2]
[421635280,1778002262000,-620.6017677,0.00013698,2]
[421635264,1778002262000,-500.0,0.00013698,2]
[421635263,1778002262000,-240.56743725,0.00013698,2]
[421635265,1778002262000,-620.49,0.00013698,2]
[421635266,1778002262000,-620.49,0.00013698,2]
[421635270,1778002262000,-620.49,0.00013698,2]
[421635268,1778002262000,-620.49,0.00013698,2]
[421635267,1778002262000,-620.49,0.00013698,2]
[421635269,1778002262000,-620.49,0.00013698,2]
[421635271,1778002262000,-620.49,0.00013698,2]
[421635282,1778002262000,-500.0,0.00013698,2]
[421635272,1778002262000,-620.49,0.00013698,2]
[421635306,1778002262000,-767.4,0.00013698,2]
[421635284,1778002262000,-500.0,0.00013698,2]
[421635273,1778002262000,-620.49,0.00013698,2]
[421635275,1778002262000,-620.49,0.00013698,2]
[421635277,1778002262000,-620.49,0.00013698,2]
[421635276,1778002262000,-620.49,0.00013698,2]
[421635279,1778002262000,-620.49,0.00013698,2]
[421635281,1778002262000,-500.0,0.00013698,2]
[421635278,1778002262000,-620.49,0.00013698,2]
[421635305,1778002262000,-767.4,0.00013698,2]
[421635314,1778002262000,-200.0,0.00011817,2]
[421635307,1778002262000,-767.4,0.00013698,2]
[421635335,1778002262000,-767.4871428,0.00013698,2]
[421635331,1778002262000,-767.4,0.00013698,2]
[421635332,1778002262000,-767.4,0.00013698,2]
[421635329,1778002262000,-767.4,0.00013698,2]
[421635347,1778002262000,-1624.05,0.00013698,2]
[421635337,1778002262000,-693.85,0.00013698,2]
[421635336,1778002262000,-436.10016109,0.00013698,2]
[421635339,1778002262000,-500.0,0.00013698,2]
[421635302,1778002262000,-767.4,0.00013698,2]
[421635338,1778002262000,-500.0,0.00013698,2]
[421635341,1778002262000,-563.64373571,0.00013698,2]
[421635345,1778002262000,-1624.05,0.00013698,2]
[421635342,1778002262000,-824.77,0.00013698,2]
[421635344,1778002262000,-500.0,0.00013698,2]
[421635343,1778002262000,-753.45,0.00013698,2]
[421635346,1778002262000,-1624.05,0.00013698,2]
[421635348,1778002262000,-1624.05,0.00013698,2]
[421635349,1778002262000,-74.18957533,0.00013698,2]
[421635340,1778002262000,-500.0,0.00013698,2]
[421635334,1778002262000,-767.4,0.00013698,2]
[421635327,1778002262000,-767.4,0.00013698,2]
[421635323,1778002262000,-500.0,0.00013424,2]
[421635304,1778002262000,-767.4,0.00013698,2]
[421635303,1778002262000,-767.4,0.00013698,2]
[421635310,1778002262000,-498.29220706,0.00013698,2]
[421635311,1778002262000,-269.10779294,0.00013698,2]
[421635312,1778002262000,-76.8213493,0.00013698,2]
[421635315,1778002262000,-200.0,0.00011817,2]
[421635313,1778002262000,-200.0,0.00011817,2]
[421635328,1778002262000,-767.4,0.00013698,2]
[421635319,1778002262000,-500.0,0.00012602,2]
[421635321,1778002262000,-500.0,0.00012876,2]
[421635316,1778002262000,-200.0,0.00011817,2]
[421635318,1778002262000,-500.0,0.00012328,2]
[421635320,1778002262000,-500.0,0.00012602,2]
[421635324,1778002262000,-161.8243,0.00013561,2]
[421635322,1778002262000,-500.0,0.0001315,2]
[421635330,1778002262000,-767.4,0.00013698,2]
[421635333,1778002262000,-767.4,0.00013698,2]
[421635326,1778002262000,-767.4,0.00013698,2]
[421635317,1778002262000,-500.0,0.00012328,2]
[421635325,1778002262000,-690.5786507,0.00013698,2]
[421635354,1778002263000,-479.51527157,0.00012328,2]
[421635350,1778002263000,-388.64809557,0.00012328,2]
[421635351,1778002263000,-1844.3,0.00011699,2]
[421635352,1778002263000,-111.35190443,0.00012328,2]
[421635353,1778002263000,-20.48472843,0.00012328,2]
[421635356,1778002263000,-500.0,0.00012602,2]
[421635359,1778002263000,-1844.3,0.00013671,2]
[421635358,1778002263000,-12646.11495644,0.00013671,2]
[421635357,1778002263000,-5673.26590905,0.00013671,2]
[421635355,1778002263000,-621.12258455,0.00012328,2]
[421635363,1778002264000,5000.0,7.6e-05,2]
[421635362,1778002264000,6682.84235341,0.0001,2]
[421635361,1778002264000,5000.0,0.0001201,2]
[421635366,1778002268000,200.0,8e-05,7]
[421635368,1778002469000,159.03604929,0.00016113,120]
[421635369,1778002470000,156.93726423,0.00016596,120]
[421635404,1778003065000,458.20547818,8.01e-05,2]
[421635406,1778003159000,20000.0,0.0002082,120]
[421635408,1778003219000,5000.0,8.01e-05,2]
[421635409,1778003227000,5000.0,8.01e-05,2]
[421635410,1778003241000,5000.0,8.01e-05,2]
[421635411,1778003249000,2652.18542209,8.01e-05,2]
[421635412,1778003264000,1722.97334481,8.01e-05,2]
[421635621,1778003432000,-300.0,8.958e-05,2]
[421635597,1778003432000,-423.92082829,8.216e-05,2]
[421635600,1778003432000,-111.07917171,8.216e-05,2]
[421635610,1778003432000,-152.0,8.482e-05,7]
[421635602,1778003432000,-370.59300814,8.216e-05,2]
[421635613,1778003432000,-152.0,8.482e-05,7]
[421635615,1778003432000,-465.0,8.5e-05,7]
[421635617,1778003432000,-300.0,8.957e-05,2]
[421635604,1778003432000,-40.77024153,8.216e-05,2]
[421635619,1778003432000,-300.0,8.958e-05,2]
[421635606,1778003432000,-152.0,8.48e-05,7]
[421635608,1778003432000,-152.0,8.48e-05,7]
[421635637,1778003432000,-300.0,8.958e-05,2]
[421635627,1778003432000,-300.0,8.958e-05,2]
[421635651,1778003432000,-869.61715075,8.958e-05,2]
[421635622,1778003432000,-300.0,8.958e-05,2]
[421635647,1778003432000,-300.0,8.958e-05,2]
[421635633,1778003432000,-300.0,8.958e-05,2]
[421635644,1778003432000,-300.0,8.958e-05,2]
[421635635,1778003432000,-300.0,8.958e-05,2]
[421635649,1778003432000,-300.0,8.958e-05,2]
[421635631,1778003432000,-300.0,8.958e-05,2]
[421635625,1778003432000,-300.0,8.958e-05,2]
[421635641,1778003432000,-300.0,8.958e-05,2]
[421635629,1778003432000,-300.0,8.958e-05,2]
[421635639,1778003432000,-300.0,8.958e-05,2]
[421635736,1778003438000,-152.0,0.00011576,30]
[421635714,1778003438000,-600.0,9.136e-05,2]
[421635712,1778003438000,-2533.29702014,8.958e-05,2]
[421635718,1778003438000,-12400.10885374,9.425e-05,2]
[421635719,1778003438000,-420.0,9.853e-05,2]
[421635716,1778003438000,-152.0,9.389e-05,2]
[421635721,1778003438000,-335.006811,0.0001,2]
[421635734,1778003438000,-152.0,0.00011576,30]
[421635738,1778003438000,-3106.0,0.000116,2]
[421635740,1778003438000,-9021.25830026,0.00011803,2]
[421635727,1778003438000,-485.40863461,0.00010216,2]
[421635742,1778003438000,-823.0,0.00011922,2]
[421635732,1778003438000,-864.0,0.00011055,2]
[421635744,1778003438000,-160.0,0.00011934,2]
[421635725,1778003438000,-720.0,0.0001005,2]
[421635745,1778003438000,-161.56332863,0.00011934,2]
[421635729,1778003438000,-587.0,0.00010838,2]
[421635731,1778003438000,-5405.2281909,0.00010959,2]
[421635749,1778003438000,-160.0,0.00011934,2]
[421635747,1778003438000,-160.0,0.00011934,2]
[421635751,1778003438000,-384.84,0.00012,2]
[421635723,1778003438000,-12512.1987194,0.0001,2]
[421635810,1778003439000,-500.0,0.00012328,2]
[421635807,1778003439000,-500.0,0.00012328,2]
[421635813,1778003439000,-500.0,0.00012328,2]
[421635809,1778003439000,-500.0,0.00012328,2]
[421635811,1778003439000,-500.0,0.00012328,2]
[421635805,1778003439000,-500.0,0.00012328,2]
[421635816,1778003439000,-500.0,0.00012328,2]
[421635815,1778003439000,-500.0,0.00012328,2]
[421635814,1778003439000,-500.0,0.00012328,2]
[421635812,1778003439000,-653.55,0.00012328,2]
[421635806,1778003439000,-500.0,0.00012328,2]
[421635795,1778003439000,-569.87,0.00012328,2]
[421635808,1778003439000,-500.0,0.00012328,2]
[421635817,1778003439000,-500.0,0.00012328,2]
[421635821,1778003439000,-500.0,0.00012328,2]
[421635828,1778003439000,-500.0,0.00012328,2]
[421635830,1778003439000,-500.0,0.00012328,2]
[421635829,1778003439000,-500.0,0.00012328,2]
[421635820,1778003439000,-500.0,0.00012328,2]
[421635824,1778003439000,-500.0,0.00012328,2]
[421635825,1778003439000,-670.24,0.00012328,2]
[421635819,1778003439000,-386.05524506,0.00012328,2]
[421635826,1778003439000,-500.0,0.00012328,2]
[421635822,1778003439000,-500.0,0.00012328,2]
[421635823,1778003439000,-500.0,0.00012328,2]
[421635827,1778003439000,-500.0,0.00012328,2]
[421635832,1778003439000,-500.0,0.00012328,2]
[421635842,1778003439000,-500.0,0.00012328,2]
[421635801,1778003439000,-1439.03,0.00012328,2]
[421635818,1778003439000,-585.89,0.00012328,2]
[421635800,1778003439000,-500.0,0.00012328,2]
[421635758,1778003439000,-646.0,0.00012109,2]
[421635796,1778003439000,-500.0,0.00012328,2]
[421635756,1778003439000,-264.16679955,0.00012101,2]
[421635761,1778003439000,-2214.0,0.00012109,2]
[421635760,1778003439000,-1411.0,0.00012109,2]
[421635754,1778003439000,-194.0,0.00012,2]
[421635765,1778003439000,-1000.0,0.0001216,2]
[421635767,1778003439000,-559.45401955,0.00012216,2]
[421635753,1778003439000,-194.0,0.00012,2]
[421635763,1778003439000,-150.362,0.00012109,2]
[421635769,1778003439000,-220.2009867,0.00012224,2]
[421635771,1778003439000,-152.1263366,0.00012238,2]
[421635772,1778003439000,-402.28173468,0.000123,2]
[421635778,1778003439000,-500.0,0.00012328,2]
[421635774,1778003439000,-500.0,0.00012328,2]
[421635776,1778003439000,-500.3438209,0.00012328,2]
[421635802,1778003439000,-612.92,0.00012328,2]